{"text_format":"1","workbook":"xlsx","n_sheets":9,"sheets":["     ","Январь 2015","Февраль 2015","Март 2015","Апрель 2015","Май 2015","Июнь 2015","Лист6","Лист7"],"not_rendered":{"charts":0,"images":0,"macros":1,"external_links":1,"defined_names":2,"comments":0,"pivot_tables":0},"unopened":[],"bounds":{"document_bytes":16777216,"sheet_cells":100000,"rows_first":2000,"rows_last":500,"rows_between":2000,"halvings":0,"cell_chars":16384,"cell_head_chars":4096},"cells_cut":0,"cells_raw":0,"read":"whole","date_system":"1900"}

{"sheet":"     ","index":0,"n_rows":24,"n_cols":8,"rows_kept":24,"cut":false,"hidden":false,"merged":[]}
["В неделю","В месяц","Проценты","АП","Счет","Группа","Время","Тренера"]
[2,2,5,"А","Айкидо","Айкидо","Т/З"]
[3,3,10,"П","Все","Айкидо - Дети"]
[4,4,15,"А/П","Тренажерный Зал","Аэробный Зал"]
[5,5,20,null,null,"Аэробный Зал - Дети"]
[6,6,25,null,null,"Персоналка"]
[null,7,30,null,null,"Тайский"]
[null,8,35,null,null,"Тайский - Дети"]
[null,9,40,null,null,"Тренажерный Зал"]
[null,10,45,null,null,"Тренажерный Зал - Дети"]
[null,11,50]
[null,12]
[null,13]
[null,14]
[null,15]
[null,16]
[null,17]
[null,18]
[null,19]
[null,20]
[null,21]
[null,22]
[null,23]
[null,24]

{"sheet":"Январь 2015","index":1,"n_rows":350,"n_cols":75,"rows_kept":350,"cut":false,"hidden":false,"merged":[[0,73,0,74],[0,12,1,12],[0,63,0,64],[0,65,0,66],[0,67,0,68],[0,69,0,70],[0,71,0,72],[0,53,0,54],[0,55,0,56],[0,57,0,58],[0,59,0,60],[0,61,0,62],[0,43,0,44],[0,45,0,46],[0,47,0,48],[0,49,0,50],[0,51,0,52],[0,33,0,34],[0,35,0,36],[0,37,0,38],[0,39,0,40],[0,41,0,42],[0,23,0,24],[0,25,0,26],[0,27,0,28],[0,29,0,30],[0,31,0,32],[0,13,0,14],[0,15,0,16],[0,17,0,18],[0,19,0,20],[0,21,0,22],[0,11,1,11],[0,7,1,7],[0,9,0,10],[0,0,1,0],[0,3,1,3],[0,4,1,4],[0,8,1,8],[0,5,0,6],[0,1,1,1],[0,2,1,2]]}
["ФИО","Остаток","Отработ.","Дата","А/П","К-во посещений",null,"Группа","Абонемент","Скидка",null,"К оплате","→","10 января",null,"11 января",null,"12 января",null,"13 января",null,"14 января",null,"15 января",null,"16 января",null,"17 января",null,"18 января",null,"19 января",null,"20 января",null,"21 января",null,"22 января",null,"23 января",null,"24 января",null,"25 января",null,"26 января",null,"27 января",null,"28 января",null,"29 января",null,"30 января",null,"31 января",null,"1 февраля",null,"2 февраля",null,"3 февраля",null,"4 февраля",null,"5 февраля",null,"6 февраля",null,"7 февраля",null,"8 февраля",null,"9 февраля"]
[null,null,null,null,null,"В неделю","В месяц",null,null,"%","грн.",null,null,"Группа","Тренер","Группа","Тренер","Группа","Тренер","Группа","Тренер","Группа","Тренер","Группа","Тренер","Группа","Тренер","Группа","Тренер","Группа","Тренер","Группа","Тренер","Группа","Тренер","Группа","Тренер","Группа","Тренер","Группа","Тренер","Группа","Тренер","Группа","Тренер","Группа","Тренер","Группа","Тренер","Группа","Тренер","Группа","Тренер","Группа","Тренер","Группа","Тренер","Группа","Тренер","Группа","Тренер","Группа","Тренер","Группа","Тренер","Группа","Тренер","Группа","Тренер","Группа","Тренер","Группа","Тренер","Группа","Тренер"]
["Василенко Дмитрий",null,null,null,null,null,6,"Айкидо",{"$f":"IF(AND(G3=2,H3=\"Айкидо\"),\"60\",IF(AND(G3=3,H3=\"Айкидо\"),\"90\",IF(AND(G3=4,H3=\"Айкидо\"),\"130\",IF(AND(G3=5,H3=\"Айкидо\"),\"160\",IF(AND(G3=6,H3=\"Айкидо\"),\"190\",IF(AND(G3=7,H3=\"Айкидо\"),\"220\",IF(AND(G3=8,H3=\"Айкидо\"),\"240\",IF(AND(G3=9,H3=\"Айкидо\"),\"260\",IF(AND(G3=10,H3=\"Айкидо\"),\"260\",IF(AND(G3=11,H3=\"Айкидо\"),\"270\",IF(AND(G3=12,H3=\"Айкидо\"),\"280\",IF(AND(G3=13,H3=\"Айкидо\"),\"280\",IF(AND(G3=2,H3=\"Тренажерный Зал\"),\"30\",IF(AND(G3=3,H3=\"Тренажерный Зал\"),\"90\",IF(AND(G3=4,H3=\"Тренажерный Зал\"),\"130\",IF(AND(G3=5,H3=\"Тренажерный Зал\"),\"155\",IF(AND(G3=6,H3=\"Тренажерный Зал\"),\"180\",IF(AND(G3=7,H3=\"Тренажерный Зал\"),\"205\",IF(AND(G3=8,H3=\"Тренажерный Зал\"),\"230\",IF(AND(G3=9,H3=\"Тренажерный Зал\"),\"250\",IF(AND(G3=10,H3=\"Тренажерный Зал\"),\"250\",IF(AND(G3=11,H3=\"Тренажерный Зал\"),\"260\",IF(AND(G3=12,H3=\"Тренажерный Зал\"),\"270\",IF(AND(G3=13,H3=\"Тренажерный Зал\"),\"270\",IF(AND(G3=14,H3=\"Тренажерный Зал\"),\"285\",IF(AND(G3=15,H3=\"Тренажерный Зал\"),\"300\",IF(AND(G3=16,H3=\"Тренажерный Зал\"),\"310\",IF(AND(G3=17,H3=\"Тренажерный Зал\"),\"320\",IF(AND(G3=18,H3=\"Тренажерный Зал\"),\"330\",IF(AND(G3=19,H3=\"Тренажерный Зал\"),\"340\",IF(AND(G3=20,H3=\"Тренажерный Зал\"),\"350\",IF(AND(G3=21,H3=\"Тренажерный Зал\"),\"355\",IF(AND(G3=22,H3=\"Тренажерный Зал\"),\"360\",IF(AND(G3=23,H3=\"Тренажерный Зал\"),\"370\",IF(AND(G3=24,H3=\"Тренажерный Зал\"),\"380\",IF(AND(G3=3),\"90\",IF(AND(G3=4),\"120\",IF(AND(G3=5),\"150\",IF(AND(G3=6),\"175\",IF(AND(G3=7),\"195\",IF(AND(G3=8),\"215\",IF(AND(G3=9),\"230\",IF(AND(G3=10),\"230\",IF(AND(G3=11),\"240\",IF(AND(G3=12),\"250\",IF(AND(G3=13),\"250\",IF(AND(G3=14),\"260\",IF(AND(G3=15),\"275\",IF(AND(G3=16),\"290\",IF(AND(G3=17),\"300\",IF(AND(G3=18),\"310\",IF(AND(G3=19),\"320\",IF(AND(G3=20),\"330\",IF(AND(G3=21),\"340\",IF(AND(G3=22),\"350\",IF(AND(G3=23),\"365\",IF(AND(G3=24),\"380\",\"\")))))))))))))))))))))))))))))))))))))))))))))))))))))))))","v":"190"},null,{"$f":"IFERROR(I3*J3%,\"\" )","v":0},{"$f":"IFERROR(I3-K3,\"\")","v":190}]
[null,null,null,null,null,null,null,null,"",null,{"$f":"IFERROR(I4*J4%,\"\" )","v":""},{"$f":"IFERROR(I4-K4,\"\")","v":""}]
[null,null,null,null,null,null,null,null,{"$f":"IF(AND(G5=2,H5=\"Айкидо\"),\"60\",IF(AND(G5=3,H5=\"Айкидо\"),\"90\",IF(AND(G5=4,H5=\"Айкидо\"),\"130\",IF(AND(G5=5,H5=\"Айкидо\"),\"160\",IF(AND(G5=6,H5=\"Айкидо\"),\"190\",IF(AND(G5=7,H5=\"Айкидо\"),\"220\",IF(AND(G5=8,H5=\"Айкидо\"),\"240\",IF(AND(G5=9,H5=\"Айкидо\"),\"260\",IF(AND(G5=10,H5=\"Айкидо\"),\"260\",IF(AND(G5=11,H5=\"Айкидо\"),\"270\",IF(AND(G5=12,H5=\"Айкидо\"),\"280\",IF(AND(G5=13,H5=\"Айкидо\"),\"280\",IF(AND(G5=2,H5=\"Тренажерный Зал\"),\"30\",IF(AND(G5=3,H5=\"Тренажерный Зал\"),\"90\",IF(AND(G5=4,H5=\"Тренажерный Зал\"),\"130\",IF(AND(G5=5,H5=\"Тренажерный Зал\"),\"155\",IF(AND(G5=6,H5=\"Тренажерный Зал\"),\"180\",IF(AND(G5=7,H5=\"Тренажерный Зал\"),\"205\",IF(AND(G5=8,H5=\"Тренажерный Зал\"),\"230\",IF(AND(G5=9,H5=\"Тренажерный Зал\"),\"250\",IF(AND(G5=10,H5=\"Тренажерный Зал\"),\"250\",IF(AND(G5=11,H5=\"Тренажерный Зал\"),\"260\",IF(AND(G5=12,H5=\"Тренажерный Зал\"),\"270\",IF(AND(G5=13,H5=\"Тренажерный Зал\"),\"270\",IF(AND(G5=14,H5=\"Тренажерный Зал\"),\"285\",IF(AND(G5=15,H5=\"Тренажерный Зал\"),\"300\",IF(AND(G5=16,H5=\"Тренажерный Зал\"),\"310\",IF(AND(G5=17,H5=\"Тренажерный Зал\"),\"320\",IF(AND(G5=18,H5=\"Тренажерный Зал\"),\"330\",IF(AND(G5=19,H5=\"Тренажерный Зал\"),\"340\",IF(AND(G5=20,H5=\"Тренажерный Зал\"),\"350\",IF(AND(G5=21,H5=\"Тренажерный Зал\"),\"355\",IF(AND(G5=22,H5=\"Тренажерный Зал\"),\"360\",IF(AND(G5=23,H5=\"Тренажерный Зал\"),\"370\",IF(AND(G5=24,H5=\"Тренажерный Зал\"),\"380\",IF(AND(G5=3),\"90\",IF(AND(G5=4),\"120\",IF(AND(G5=5),\"150\",IF(AND(G5=6),\"175\",IF(AND(G5=7),\"195\",IF(AND(G5=8),\"215\",IF(AND(G5=9),\"230\",IF(AND(G5=10),\"230\",IF(AND(G5=11),\"240\",IF(AND(G5=12),\"250\",IF(AND(G5=13),\"250\",IF(AND(G5=14),\"260\",IF(AND(G5=15),\"275\",IF(AND(G5=16),\"290\",IF(AND(G5=17),\"300\",IF(AND(G5=18),\"310\",IF(AND(G5=19),\"320\",IF(AND(G5=20),\"330\",IF(AND(G5=21),\"340\",IF(AND(G5=22),\"350\",IF(AND(G5=23),\"365\",IF(AND(G5=24),\"380\",\"\")))))))))))))))))))))))))))))))))))))))))))))))))))))))))","v":""},null,null,{"$f":"IFERROR(I5-K5,\"\")","v":""}]
[null,null,null,null,null,null,null,null,{"$f":"IF(F6=2,\"230\",IF(F6=3,\"250\", IF(F6=4,\"290\",IF(F6=5,\"330\",IF(F6=6,\"380\",\"\")))))","v":""},null,{"$f":"IFERROR(I6*J6%,\"\" )","v":""},{"$f":"IFERROR(I6-K6,\"\")","v":""}]
[null,null,null,null,null,null,null,null,"",null,"",""]
[null,null,null,null,null,null,null,null,"",null,null,""]
[null,null,null,null,null,null,null,null,"",null,null,""]
[null,null,null,null,null,null,null,null,"",null,null,""]
[null,null,null,null,null,null,null,null,"",null,null,""]
[null,null,null,null,null,null,null,null,"",null,null,""]
[null,null,null,null,null,null,null,null,"",null,null,""]
[null,null,null,null,null,null,null,null,"",null,null,""]
[null,null,null,null,null,null,null,null,"",null,null,""]
[null,null,null,null,null,null,null,null,"",null,null,""]
[null,null,null,null,null,null,null,null,"",null,null,""]
[null,null,null,null,null,null,null,null,"",null,null,""]
[null,null,null,null,null,null,null,null,"",null,null,""]
[null,null,null,null,null,null,null,null,"",null,null,""]
[null,null,null,null,null,null,null,null,"",null,null,""]
[null,null,null,null,null,null,null,null,"",null,null,""]
[null,null,null,null,null,null,null,null,"",null,null,""]
[null,null,null,null,null,null,null,null,"",null,null,""]
[null,null,null,null,null,null,null,null,"",null,null,""]
[null,null,null,null,null,null,null,null,"",null,null,""]
[null,null,null,null,null,null,null,null,"",null,null,""]
[null,null,null,null,null,null,null,null,"",null,null,""]
[null,null,null,null,null,null,null,null,"",null,null,""]
[null,null,null,null,null,null,null,null,"",null,null,""]
[null,null,null,null,null,null,null,null,"",null,null,""]
[null,null,null,null,null,null,null,null,"",null,null,""]
[null,null,null,null,null,null,null,null,"",null,null,""]
[null,null,null,null,null,null,null,null,"",null,null,""]
[null,null,null,null,null,null,null,null,"",null,null,""]
[null,null,null,null,null,null,null,null,"",null,null,""]
[null,null,null,null,null,null,null,null,"",null,null,""]
[null,null,null,null,null,null,null,null,"",null,null,""]
[null,null,null,null,null,null,null,null,"",null,null,""]
[null,null,null,null,null,null,null,null,"",null,null,""]
[null,null,null,null,null,null,null,null,"",null,null,""]
[null,null,null,null,null,null,null,null,"",null,null,""]
[null,null,null,null,null,null,null,null,"",null,null,""]
[null,null,null,null,null,null,null,null,"",null,null,""]
[null,null,null,null,null,null,null,null,"",null,null,""]
[null,null,null,null,null,null,null,null,"",null,null,""]
[null,null,null,null,null,null,null,null,"",null,null,""]
[null,null,null,null,null,null,null,null,"",null,null,""]
[null,null,null,null,null,null,null,null,"",null,null,""]
[null,null,null,null,null,null,null,null,"",null,null,""]
[null,null,null,null,null,null,null,null,"",null,null,""]
[null,null,null,null,null,null,null,null,"",null,null,""]
[null,null,null,null,null,null,null,null,"",null,null,""]
[null,null,null,null,null,null,null,null,"",null,null,""]
[null,null,null,null,null,null,null,null,"",null,null,""]
[null,null,null,null,null,null,null,null,"",null,null,""]
[null,null,null,null,null,null,null,null,"",null,null,""]
[null,null,null,null,null,null,null,null,"",null,null,""]
[null,null,null,null,null,null,null,null,"",null,null,""]
[null,null,null,null,null,null,null,null,"",null,null,""]
[null,null,null,null,null,null,null,null,"",null,null,""]
[null,null,null,null,null,null,null,null,"",null,null,""]
[null,null,null,null,null,null,null,null,"",null,null,""]
[null,null,null,null,null,null,null,null,"",null,null,""]
[null,null,null,null,null,null,null,null,"",null,null,""]
[null,null,null,null,null,null,null,null,"",null,null,""]
[null,null,null,null,null,null,null,null,"",null,null,""]
[null,null,null,null,null,null,null,null,"",null,null,{"$f":"IFERROR(I68-K68,\"\")","v":""}]
[null,null,null,null,null,null,null,null,{"$f":"IF(F69=2,\"230\",IF(F69=3,\"250\", IF(F69=4,\"290\",IF(F69=5,\"330\",IF(F69=6,\"380\",\"\")))))","v":""},null,null,""]
[null,null,null,null,null,null,null,null,"",null,null,""]
[null,null,null,null,null,null,null,null,"",null,null,""]
[null,null,null,null,null,null,null,null,"",null,null,""]
[null,null,null,null,null,null,null,null,"",null,null,""]
[null,null,null,null,null,null,null,null,"",null,null,""]
[null,null,null,null,null,null,null,null,"",null,null,""]
[null,null,null,null,null,null,null,null,"",null,null,""]
[null,null,null,null,null,null,null,null,"",null,null,""]
[null,null,null,null,null,null,null,null,"",null,null,""]
[null,null,null,null,null,null,null,null,"",null,null,""]
[null,null,null,null,null,null,null,null,"",null,null,""]
[null,null,null,null,null,null,null,null,"",null,null,""]
[null,null,null,null,null,null,null,null,"",null,null,""]
[null,null,null,null,null,null,null,null,"",null,null,""]
[null,null,null,null,null,null,null,null,"",null,null,""]
[null,null,null,null,null,null,null,null,"",null,null,""]
[null,null,null,null,null,null,null,null,"",null,null,""]
[null,null,null,null,null,null,null,null,"",null,null,""]
[null,null,null,null,null,null,null,null,"",null,null,""]
[null,null,null,null,null,null,null,null,"",null,null,""]
[null,null,null,null,null,null,null,null,"",null,null,""]
[null,null,null,null,null,null,null,null,"",null,null,""]
[null,null,null,null,null,null,null,null,"",null,null,""]
[null,null,null,null,null,null,null,null,"",null,null,""]
[null,null,null,null,null,null,null,null,"",null,null,""]
[null,null,null,null,null,null,null,null,"",null,null,""]
[null,null,null,null,null,null,null,null,"",null,null,""]
[null,null,null,null,null,null,null,null,"",null,null,""]
[null,null,null,null,null,null,null,null,"",null,null,""]
[null,null,null,null,null,null,null,null,"",null,null,""]
[null,null,null,null,null,null,null,null,"",null,null,""]
[null,null,null,null,null,null,null,null,"",null,null,""]
[null,null,null,null,null,null,null,null,"",null,null,""]
[null,null,null,null,null,null,null,null,"",null,null,""]
[null,null,null,null,null,null,null,null,"",null,null,""]
[null,null,null,null,null,null,null,null,"",null,null,""]
[null,null,null,null,null,null,null,null,"",null,null,""]
[null,null,null,null,null,null,null,null,"",null,null,""]
[null,null,null,null,null,null,null,null,"",null,null,""]
[null,null,null,null,null,null,null,null,"",null,null,""]
[null,null,null,null,null,null,null,null,"",null,null,""]
[null,null,null,null,null,null,null,null,"",null,null,""]
[null,null,null,null,null,null,null,null,"",null,null,""]
[null,null,null,null,null,null,null,null,"",null,null,""]
[null,null,null,null,null,null,null,null,"",null,null,""]
[null,null,null,null,null,null,null,null,"",null,null,""]
[null,null,null,null,null,null,null,null,"",null,null,""]
[null,null,null,null,null,null,null,null,"",null,null,""]
[null,null,null,null,null,null,null,null,"",null,null,""]
[null,null,null,null,null,null,null,null,"",null,null,""]
[null,null,null,null,null,null,null,null,"",null,null,""]
[null,null,null,null,null,null,null,null,"",null,null,""]
[null,null,null,null,null,null,null,null,"",null,null,""]
[null,null,null,null,null,null,null,null,"",null,null,""]
[null,null,null,null,null,null,null,null,"",null,null,""]
[null,null,null,null,null,null,null,null,"",null,null,""]
[null,null,null,null,null,null,null,null,"",null,null,""]
[null,null,null,null,null,null,null,null,"",null,null,""]
[null,null,null,null,null,null,null,null,"",null,null,""]
[null,null,null,null,null,null,null,null,"",null,null,""]
[null,null,null,null,null,null,null,null,"",null,null,""]
[null,null,null,null,null,null,null,null,"",null,null,""]
[null,null,null,null,null,null,null,null,"",null,null,{"$f":"IFERROR(I132-K132,\"\")","v":""}]
[null,null,null,null,null,null,null,null,{"$f":"IF(F133=2,\"230\",IF(F133=3,\"250\", IF(F133=4,\"290\",IF(F133=5,\"330\",IF(F133=6,\"380\",\"\")))))","v":""},null,null,""]
[null,null,null,null,null,null,null,null,"",null,null,""]
[null,null,null,null,null,null,null,null,"",null,null,""]
[null,null,null,null,null,null,null,null,"",null,null,""]
[null,null,null,null,null,null,null,null,"",null,null,""]
[null,null,null,null,null,null,null,null,"",null,null,""]
[null,null,null,null,null,null,null,null,"",null,null,""]
[null,null,null,null,null,null,null,null,"",null,null,""]
[null,null,null,null,null,null,null,null,"",null,null,""]
[null,null,null,null,null,null,null,null,"",null,null,""]
[null,null,null,null,null,null,null,null,"",null,null,""]
[null,null,null,null,null,null,null,null,"",null,null,""]
[null,null,null,null,null,null,null,null,"",null,null,""]
[null,null,null,null,null,null,null,null,"",null,null,""]
[null,null,null,null,null,null,null,null,"",null,null,""]
[null,null,null,null,null,null,null,null,"",null,null,""]
[null,null,null,null,null,null,null,null,"",null,null,""]
[null,null,null,null,null,null,null,null,"",null,null,""]
[null,null,null,null,null,null,null,null,"",null,null,""]
[null,null,null,null,null,null,null,null,"",null,null,""]
[null,null,null,null,null,null,null,null,"",null,null,""]
[null,null,null,null,null,null,null,null,"",null,null,""]
[null,null,null,null,null,null,null,null,"",null,null,""]
[null,null,null,null,null,null,null,null,"",null,null,""]
[null,null,null,null,null,null,null,null,"",null,null,""]
[null,null,null,null,null,null,null,null,"",null,null,""]
[null,null,null,null,null,null,null,null,"",null,null,""]
[null,null,null,null,null,null,null,null,"",null,null,""]
[null,null,null,null,null,null,null,null,"",null,null,""]
[null,null,null,null,null,null,null,null,"",null,null,""]
[null,null,null,null,null,null,null,null,"",null,null,""]
[null,null,null,null,null,null,null,null,"",null,null,""]
[null,null,null,null,null,null,null,null,"",null,null,""]
[null,null,null,null,null,null,null,null,"",null,null,""]
[null,null,null,null,null,null,null,null,"",null,null,""]
[null,null,null,null,null,null,null,null,"",null,null,""]
[null,null,null,null,null,null,null,null,"",null,null,""]
[null,null,null,null,null,null,null,null,"",null,null,""]
[null,null,null,null,null,null,null,null,"",null,null,""]
[null,null,null,null,null,null,null,null,"",null,null,""]
[null,null,null,null,null,null,null,null,"",null,null,""]
[null,null,null,null,null,null,null,null,"",null,null,""]
[null,null,null,null,null,null,null,null,"",null,null,""]
[null,null,null,null,null,null,null,null,"",null,null,""]
[null,null,null,null,null,null,null,null,"",null,null,""]
[null,null,null,null,null,null,null,null,"",null,null,""]
[null,null,null,null,null,null,null,null,"",null,null,""]
[null,null,null,null,null,null,null,null,"",null,null,""]
[null,null,null,null,null,null,null,null,"",null,null,""]
[null,null,null,null,null,null,null,null,"",null,null,""]
[null,null,null,null,null,null,null,null,"",null,null,""]
[null,null,null,null,null,null,null,null,"",null,null,""]
[null,null,null,null,null,null,null,null,"",null,null,""]
[null,null,null,null,null,null,null,null,"",null,null,""]
[null,null,null,null,null,null,null,null,"",null,null,""]
[null,null,null,null,null,null,null,null,"",null,null,""]
[null,null,null,null,null,null,null,null,"",null,null,""]
[null,null,null,null,null,null,null,null,"",null,null,""]
[null,null,null,null,null,null,null,null,"",null,null,""]
[null,null,null,null,null,null,null,null,"",null,null,""]
[null,null,null,null,null,null,null,null,"",null,null,""]
[null,null,null,null,null,null,null,null,"",null,null,""]
[null,null,null,null,null,null,null,null,"",null,null,""]
[null,null,null,null,null,null,null,null,"",null,null,{"$f":"IFERROR(I196-K196,\"\")","v":""}]
[null,null,null,null,null,null,null,null,{"$f":"IF(F197=2,\"230\",IF(F197=3,\"250\", IF(F197=4,\"290\",IF(F197=5,\"330\",IF(F197=6,\"380\",\"\")))))","v":""},null,null,""]
[null,null,null,null,null,null,null,null,"",null,null,""]
[null,null,null,null,null,null,null,null,"",null,null,""]
[null,null,null,null,null,null,null,null,"",null,null,""]
[null,null,null,null,null,null,null,null,"",null,null,""]
[null,null,null,null,null,null,null,null,"",null,null,""]
[null,null,null,null,null,null,null,null,"",null,null,""]
[null,null,null,null,null,null,null,null,"",null,null,""]
[null,null,null,null,null,null,null,null,"",null,null,""]
[null,null,null,null,null,null,null,null,"",null,null,""]
[null,null,null,null,null,null,null,null,"",null,null,""]
[null,null,null,null,null,null,null,null,"",null,null,""]
[null,null,null,null,null,null,null,null,"",null,null,""]
[null,null,null,null,null,null,null,null,"",null,null,""]
[null,null,null,null,null,null,null,null,"",null,null,""]
[null,null,null,null,null,null,null,null,"",null,null,""]
[null,null,null,null,null,null,null,null,"",null,null,""]
[null,null,null,null,null,null,null,null,"",null,null,""]
[null,null,null,null,null,null,null,null,"",null,null,""]
[null,null,null,null,null,null,null,null,"",null,null,""]
[null,null,null,null,null,null,null,null,"",null,null,""]
[null,null,null,null,null,null,null,null,"",null,null,""]
[null,null,null,null,null,null,null,null,"",null,null,""]
[null,null,null,null,null,null,null,null,"",null,null,""]
[null,null,null,null,null,null,null,null,"",null,null,""]
[null,null,null,null,null,null,null,null,"",null,null,""]
[null,null,null,null,null,null,null,null,"",null,null,""]
[null,null,null,null,null,null,null,null,"",null,null,""]
[null,null,null,null,null,null,null,null,"",null,null,""]
[null,null,null,null,null,null,null,null,"",null,null,""]
[null,null,null,null,null,null,null,null,"",null,null,""]
[null,null,null,null,null,null,null,null,"",null,null,""]
[null,null,null,null,null,null,null,null,"",null,null,""]
[null,null,null,null,null,null,null,null,"",null,null,""]
[null,null,null,null,null,null,null,null,"",null,null,""]
[null,null,null,null,null,null,null,null,"",null,null,""]
[null,null,null,null,null,null,null,null,"",null,null,""]
[null,null,null,null,null,null,null,null,"",null,null,""]
[null,null,null,null,null,null,null,null,"",null,null,""]
[null,null,null,null,null,null,null,null,"",null,null,""]
[null,null,null,null,null,null,null,null,"",null,null,""]
[null,null,null,null,null,null,null,null,"",null,null,""]
[null,null,null,null,null,null,null,null,"",null,null,""]
[null,null,null,null,null,null,null,null,"",null,null,""]
[null,null,null,null,null,null,null,null,"",null,null,""]
[null,null,null,null,null,null,null,null,"",null,null,""]
[null,null,null,null,null,null,null,null,"",null,null,""]
[null,null,null,null,null,null,null,null,"",null,null,""]
[null,null,null,null,null,null,null,null,"",null,null,""]
[null,null,null,null,null,null,null,null,"",null,null,""]
[null,null,null,null,null,null,null,null,"",null,null,""]
[null,null,null,null,null,null,null,null,"",null,null,""]
[null,null,null,null,null,null,null,null,"",null,null,""]
[null,null,null,null,null,null,null,null,"",null,null,""]
[null,null,null,null,null,null,null,null,"",null,null,""]
[null,null,null,null,null,null,null,null,"",null,null,""]
[null,null,null,null,null,null,null,null,"",null,null,""]
[null,null,null,null,null,null,null,null,"",null,null,""]
[null,null,null,null,null,null,null,null,"",null,null,""]
[null,null,null,null,null,null,null,null,"",null,null,""]
[null,null,null,null,null,null,null,null,"",null,null,""]
[null,null,null,null,null,null,null,null,"",null,null,""]
[null,null,null,null,null,null,null,null,"",null,null,""]
[null,null,null,null,null,null,null,null,"",null,null,{"$f":"IFERROR(I260-K260,\"\")","v":""}]
[null,null,null,null,null,null,null,null,{"$f":"IF(F261=2,\"230\",IF(F261=3,\"250\", IF(F261=4,\"290\",IF(F261=5,\"330\",IF(F261=6,\"380\",\"\")))))","v":""},null,null,""]
[null,null,null,null,null,null,null,null,"",null,null,""]
[null,null,null,null,null,null,null,null,"",null,null,""]
[null,null,null,null,null,null,null,null,"",null,null,""]
[null,null,null,null,null,null,null,null,"",null,null,""]
[null,null,null,null,null,null,null,null,"",null,null,""]
[null,null,null,null,null,null,null,null,"",null,null,""]
[null,null,null,null,null,null,null,null,"",null,null,""]
[null,null,null,null,null,null,null,null,"",null,null,""]
[null,null,null,null,null,null,null,null,"",null,null,""]
[null,null,null,null,null,null,null,null,"",null,null,""]
[null,null,null,null,null,null,null,null,"",null,null,""]
[null,null,null,null,null,null,null,null,"",null,null,""]
[null,null,null,null,null,null,null,null,"",null,null,""]
[null,null,null,null,null,null,null,null,"",null,null,""]
[null,null,null,null,null,null,null,null,"",null,null,""]
[null,null,null,null,null,null,null,null,"",null,null,""]
[null,null,null,null,null,null,null,null,"",null,null,""]
[null,null,null,null,null,null,null,null,"",null,null,""]
[null,null,null,null,null,null,null,null,"",null,null,""]
[null,null,null,null,null,null,null,null,"",null,null,""]
[null,null,null,null,null,null,null,null,"",null,null,""]
[null,null,null,null,null,null,null,null,"",null,null,""]
[null,null,null,null,null,null,null,null,"",null,null,""]
[null,null,null,null,null,null,null,null,"",null,null,""]
[null,null,null,null,null,null,null,null,"",null,null,""]
[null,null,null,null,null,null,null,null,"",null,null,""]
[null,null,null,null,null,null,null,null,"",null,null,""]
[null,null,null,null,null,null,null,null,"",null,null,""]
[null,null,null,null,null,null,null,null,"",null,null,""]
[null,null,null,null,null,null,null,null,"",null,null,""]
[null,null,null,null,null,null,null,null,"",null,null,""]
[null,null,null,null,null,null,null,null,"",null,null,""]
[null,null,null,null,null,null,null,null,"",null,null,""]
[null,null,null,null,null,null,null,null,"",null,null,""]
[null,null,null,null,null,null,null,null,"",null,null,""]
[null,null,null,null,null,null,null,null,"",null,null,""]
[null,null,null,null,null,null,null,null,"",null,null,""]
[null,null,null,null,null,null,null,null,"",null,null,""]
[null,null,null,null,null,null,null,null,"",null,null,""]
[null,null,null,null,null,null,null,null,"",null,null,""]
[null,null,null,null,null,null,null,null,"",null,null,""]
[null,null,null,null,null,null,null,null,"",null,null,""]
[null,null,null,null,null,null,null,null,"",null,null,""]
[null,null,null,null,null,null,null,null,"",null,null,""]
[null,null,null,null,null,null,null,null,"",null,null,""]
[null,null,null,null,null,null,null,null,"",null,null,""]
[null,null,null,null,null,null,null,null,"",null,null,""]
[null,null,null,null,null,null,null,null,"",null,null,""]
[null,null,null,null,null,null,null,null,"",null,null,""]
[null,null,null,null,null,null,null,null,"",null,null,""]
[null,null,null,null,null,null,null,null,"",null,null,""]
[null,null,null,null,null,null,null,null,"",null,null,""]
[null,null,null,null,null,null,null,null,"",null,null,""]
[null,null,null,null,null,null,null,null,"",null,null,""]
[null,null,null,null,null,null,null,null,"",null,null,""]
[null,null,null,null,null,null,null,null,"",null,null,""]
[null,null,null,null,null,null,null,null,"",null,null,""]
[null,null,null,null,null,null,null,null,"",null,null,""]
[null,null,null,null,null,null,null,null,"",null,null,""]
[null,null,null,null,null,null,null,null,"",null,null,""]
[null,null,null,null,null,null,null,null,"",null,null,""]
[null,null,null,null,null,null,null,null,"",null,null,""]
[null,null,null,null,null,null,null,null,"",null,null,{"$f":"IFERROR(I324-K324,\"\")","v":""}]
[null,null,null,null,null,null,null,null,{"$f":"IF(F325=2,\"230\",IF(F325=3,\"250\", IF(F325=4,\"290\",IF(F325=5,\"330\",IF(F325=6,\"380\",\"\")))))","v":""},null,null,""]
[null,null,null,null,null,null,null,null,"",null,null,""]
[null,null,null,null,null,null,null,null,"",null,null,""]
[null,null,null,null,null,null,null,null,"",null,null,""]
[null,null,null,null,null,null,null,null,"",null,null,""]
[null,null,null,null,null,null,null,null,"",null,null,""]
[null,null,null,null,null,null,null,null,"",null,null,""]
[null,null,null,null,null,null,null,null,"",null,null,""]
[null,null,null,null,null,null,null,null,"",null,null,""]
[null,null,null,null,null,null,null,null,"",null,null,""]
[null,null,null,null,null,null,null,null,"",null,null,""]
[null,null,null,null,null,null,null,null,"",null,null,""]
[null,null,null,null,null,null,null,null,"",null,null,""]
[null,null,null,null,null,null,null,null,"",null,null,""]
[null,null,null,null,null,null,null,null,"",null,null,""]
[null,null,null,null,null,null,null,null,"",null,null,""]
[null,null,null,null,null,null,null,null,"",null,null,""]
[null,null,null,null,null,null,null,null,"",null,null,""]
[null,null,null,null,null,null,null,null,"",null,null,""]
[null,null,null,null,null,null,null,null,"",null,null,""]
[null,null,null,null,null,null,null,null,"",null,null,""]
[null,null,null,null,null,null,null,null,"",null,null,""]
[null,null,null,null,null,null,null,null,"",null,null,""]
[null,null,null,null,null,null,null,null,"",null,null,""]
[null,null,null,null,null,null,null,null,"",null,null,""]
[null,null,null,null,null,null,null,null,"",null,null,""]

{"sheet":"Февраль 2015","index":2,"n_rows":0,"n_cols":0,"rows_kept":0,"cut":false,"hidden":false,"merged":[]}

{"sheet":"Март 2015","index":3,"n_rows":0,"n_cols":0,"rows_kept":0,"cut":false,"hidden":false,"merged":[]}

{"sheet":"Апрель 2015","index":4,"n_rows":0,"n_cols":0,"rows_kept":0,"cut":false,"hidden":false,"merged":[]}

{"sheet":"Май 2015","index":5,"n_rows":0,"n_cols":0,"rows_kept":0,"cut":false,"hidden":false,"merged":[]}

{"sheet":"Июнь 2015","index":6,"n_rows":0,"n_cols":0,"rows_kept":0,"cut":false,"hidden":false,"merged":[]}

{"sheet":"Лист6","index":7,"n_rows":0,"n_cols":0,"rows_kept":0,"cut":false,"hidden":false,"merged":[]}

{"sheet":"Лист7","index":8,"n_rows":0,"n_cols":0,"rows_kept":0,"cut":false,"hidden":false,"merged":[]}